bitfinex/quotes_SOLUSD_20220207
["timestamp","ask_amount","ask_price","bid_price","bid_amount"]
[1644220757374,41.51825844,117.43,117.34,48.52001393]
[1644220757573,41.51825844,117.43,117.34,42.52001393]
[1644220757773,18.7802,117.44,117.34,42.52001393]
[1644220757974,61.5253,117.46,117.34,48.52001393]
[1644220758173,61.5253,117.46,117.35,23.6763]
[1644220758673,48.7469,117.46,117.35,29.9263]
[1644220758873,47.71222385,117.47,117.36,45.47577996]
[1644220759075,6.0,117.47,117.37,23.6763]
[1644220759273,6.25,117.47,117.37,23.9263]
[1644220759474,0.25,117.47,117.37,23.9263]
[1644220759878,43.4958,117.49,117.37,23.9263]
[1644220760175,47.52874417,117.48,117.38,42.75681339]
[1644220760575,53.77874417,117.48,117.38,43.00681339]
[1644220760775,53.77874417,117.48,117.38,42.75681339]
[1644220760976,12.28,117.47,117.38,42.75681339]
[1644220761175,12.7796,117.45,117.38,42.75681339]
[1644220761377,38.52682132,117.44,117.38,42.75681339]
[1644220761776,38.77682132,117.44,117.38,42.75681339]
[1644220762377,38.77682132,117.44,117.38,43.00681339]
[1644220763576,38.77682132,117.44,117.37,23.6763]
[1644220763776,38.77682132,117.44,117.37,0.25]
[1644220763977,38.77682132,117.44,117.35,24.1484]
[1644220764179,51.55782132,117.44,117.35,24.1484]
[1644220764577,51.55782132,117.44,117.36,46.1178656]
[1644220765277,57.55782132,117.44,117.36,46.1178656]
[1644220765676,51.55782132,117.44,117.36,46.1178656]
[1644220765877,51.55782132,117.44,117.36,46.3678656]
[1644220767976,19.031,117.44,117.36,46.3678656]
[1644220768276,18.781,117.44,117.36,46.3678656]
[1644220768677,12.781,117.44,117.36,46.3678656]
[1644220768878,47.8337872,117.44,117.36,46.3678656]
[1644220769479,12.781,117.44,117.36,46.3678656]
[1644220770079,12.781,117.44,117.37,0.3002755]
[1644220770480,48.08128749,117.43,117.37,0.3002755]
[1644220770679,66.86338749,117.43,117.37,0.3002755]
[1644220771480,60.86338749,117.43,117.37,0.3002755]
[1644220771883,81.16854169,117.43,117.37,0.3002755]
[1644220772082,83.27415259,117.43,117.37,0.3002755]
[1644220772280,98.18161738,117.43,117.37,0.3002755]
[1644220772481,123.08661738,117.43,117.37,0.3002755]
[1644220772981,123.08661738,117.43,117.32,47.22469072]
[1644220773183,123.33661738,117.43,117.32,47.52496622]
[1644220773782,123.33661738,117.43,117.32,47.77496622]
[1644220774385,121.23100648,117.43,117.32,53.77496622]
[1644220774585,106.07354169,117.43,117.32,53.77496622]
[1644220776187,106.07354169,117.43,117.32,53.52496622]
[1644220777188,43.6871,117.43,117.32,53.52496622]
[1644220777394,43.6871,117.43,117.33,22.9871]
[1644220777395,37.6871,117.43,117.33,22.9871]
[1644220777587,12.7821,117.43,117.33,28.9871]
[1644220777788,12.7821,117.43,117.34,1.73430253]
[1644220777985,12.7794,117.45,117.34,2.03457803]
[1644220778186,42.92289539,117.44,117.35,47.66059371]
[1644220778585,12.7794,117.45,117.35,53.91059371]
[1644220778785,24.0988,117.46,117.35,53.91059371]
[1644220779386,24.0988,117.46,117.36,23.5202]
[1644220779591,38.20552452,117.45,117.37,38.2013142]
[1644220779988,44.20552452,117.45,117.37,38.2013142]
[1644220780388,44.20552452,117.45,117.36,6.0]
[1644220780389,44.45552452,117.45,117.36,6.0]
[1644220780587,44.45552452,117.45,117.34,0.3002755]
[1644220780786,23.031,117.44,117.34,0.3002755]
[1644220780988,12.7817,117.43,117.34,0.3002755]
[1644220781389,19.0317,117.43,117.33,0.3002755]
[1644220781688,45.95827196,117.42,117.33,35.48091433]
[1644220782091,46.20827196,117.42,117.33,41.73091433]
[1644220782290,58.99147196,117.42,117.33,41.73091433]
[1644220782490,64.99147196,117.42,117.33,41.73091433]
[1644220782690,64.99147196,117.42,117.33,35.48091433]
[1644220783793,75.81147196,117.42,117.33,35.48091433]
[1644220784598,75.81147196,117.42,117.33,41.48091433]
[1644220784795,75.81147196,117.42,117.33,41.73091433]
[1644220784999,64.74147196,117.42,117.33,41.73091433]
[1644220785198,12.7832,117.42,117.33,41.73091433]
[1644220785598,35.8117,117.44,117.33,41.73091433]
[1644220786200,80.53761069,117.44,117.33,43.46069297]
[1644220786400,80.53761069,117.44,117.35,48.65551566]
[1644220786602,80.53761069,117.44,117.35,54.65551566]
[1644220786802,80.53761069,117.44,117.35,54.90551566]
[1644220787000,80.53761069,117.44,117.35,54.65551566]
[1644220787204,80.78761069,117.44,117.35,54.90551566]
[1644220787403,80.78761069,117.44,117.36,0.3002755]
[1644220788402,86.78761069,117.44,117.36,0.3002755]
[1644220795119,80.78761069,117.44,117.36,0.3002755]
[1644220796119,86.78761069,117.44,117.36,0.3002755]
[1644220799728,80.78761069,117.44,117.36,0.3002755]
[1644220800428,86.78761069,117.44,117.36,0.3002755]
[1644220801832,86.53761069,117.44,117.36,0.3002755]
[1644220806038,86.78761069,117.44,117.36,0.3002755]
[1644220810144,86.53761069,117.44,117.36,0.3002755]
[1644220811948,86.78761069,117.44,117.36,0.3002755]
[1644220813147,86.78761069,117.44,117.33,0.3002755]
[1644220813550,86.78761069,117.44,117.33,45.32637331]
[1644220813951,86.78761069,117.44,117.34,23.6211]
[1644220814149,86.78761069,117.44,117.35,47.76802229]
[1644220814351,86.78761069,117.44,117.35,48.01802229]
[1644220816168,86.78761069,117.44,117.36,0.3002755]
[1644220819373,86.78761069,117.44,117.35,0.3002755]
[1644220820578,109.04558398,117.44,117.35,0.3002755]
[1644220820977,86.78761069,117.44,117.35,0.3002755]
[1644220823377,86.53761069,117.44,117.35,0.3002755]
[1644220824180,1.19845806,117.42,117.35,0.3002755]
[1644220824377,12.7841,117.41,117.35,0.3002755]
[1644220824578,40.99834657,117.4,117.35,0.3002755]
[1644220824878,41.24834657,117.4,117.35,0.3002755]
[1644220825079,40.99834657,117.4,117.35,0.3002755]
[1644220825278,41.24834657,117.4,117.35,0.3002755]
[1644220825482,47.24834657,117.4,117.35,0.3002755]
[1644220825682,12.7859,117.39,117.35,0.3002755]
[1644220825880,36.06208568,117.38,117.35,0.3002755]
[1644220826084,40.32208568,117.38,117.35,0.3002755]
[1644220826285,47.77054374,117.38,117.29,0.3002755]
[1644220826482,43.51054374,117.38,117.29,0.3002755]
[1644220827282,1.19845806,117.37,117.29,0.3002755]
[1644220827483,43.86682736,117.36,117.29,0.3002755]
[1644220827686,12.791,117.35,117.29,0.3002755]
[1644220827882,44.08205147,117.34,117.29,0.3002755]
[1644220828483,12.791,117.35,117.29,0.3002755]
[1644220828683,13.041,117.35,117.29,0.3002755]
[1644220829483,48.03814843,117.35,117.29,0.3002755]
[1644220830987,12.7948,117.33,117.28,0.3002755]
[1644220831387,13.0448,117.33,117.28,0.3002755]
[1644220831586,42.96418527,117.32,117.28,0.3002755]
[1644220831786,43.21418527,117.32,117.28,0.3002755]
[1644220831988,49.21418527,117.32,117.28,0.3002755]
[1644220832186,12.7944,117.31,117.28,0.3002755]
[1644220832387,48.25219238,117.3,117.28,0.3002755]
[1644220833787,61.29859238,117.3,117.28,0.3002755]
[1644220834187,61.29859238,117.3,117.23,22.9828]
[1644220834188,61.29859238,117.3,117.25,0.3002755]
[1644220834389,67.29859238,117.3,117.25,0.3002755]
[1644220835691,69.40420328,117.3,117.25,0.3002755]
[1644220837089,67.29859238,117.3,117.25,0.3002755]
[1644220837289,67.29859238,117.3,117.22,0.3002755]
[1644220837489,54.50219238,117.3,117.22,0.3002755]
[1644220838293,56.60780328,117.3,117.22,0.3002755]
[1644220839991,69.40840328,117.3,117.22,0.3002755]
[1644220841591,69.15840328,117.3,117.22,0.3002755]
[1644220842391,4.264,117.29,117.22,0.3002755]
[1644220842590,10.264,117.29,117.21,0.3002755]
[1644220842792,2.1056109,117.28,117.21,0.3002755]
[1644220842992,4.264,117.27,117.21,0.3002755]
[1644220843192,46.09509585,117.27,117.21,0.3002755]
[1644220843391,52.34509585,117.27,117.21,0.3002755]
[1644220843994,65.14869585,117.27,117.21,0.3002755]
[1644220845494,67.25430675,117.27,117.21,0.3002755]
[1644220845694,67.25430675,117.27,117.19,0.3002755]
[1644220847496,0.30283217,117.22,117.12,28.50005122]
[1644220847698,0.30283217,117.22,117.12,24.50708461]
[1644220847898,6.3726109,117.21,117.12,24.50708461]
[1644220848099,12.3726109,117.21,117.12,24.50708461]
[1644220848301,68.14049315,117.2,117.12,24.50708461]
[1644220848726,2.1056109,117.19,117.12,24.50708461]
[1644220848923,14.9175109,117.19,117.12,24.50708461]
[1644220849124,21.1675109,117.19,117.12,24.50708461]
[1644220849326,36.94394498,117.18,117.09,0.50622444]
[1644220849527,41.21194498,117.18,117.09,0.50622444]
[1644220849725,47.46194498,117.18,117.09,0.50622444]
[1644220849926,2.1056109,117.17,117.09,0.50622444]
[1644220850126,8.1056109,117.17,117.09,0.50622444]
[1644220850328,12.8154,117.16,117.09,0.50622444]
[1644220850526,19.1890109,117.16,117.09,0.50622444]
[1644220850730,44.81045198,117.15,117.09,0.50622444]
[1644220851130,53.16606288,117.15,117.05,0.63787646]
[1644220851433,53.16606288,117.15,117.0,1.5]
[1644220851434,0.32314728,117.1,117.0,1.5]
[1644220851631,12.8247,117.07,117.0,1.5]
[1644220851830,13.0747,117.07,117.0,1.5]
[1644220852030,19.0747,117.07,117.0,1.5]
[1644220852230,42.42946524,117.06,117.0,1.5]
[1644220852430,6.25,117.07,116.95,402.47091813]
[1644220852630,0.25,117.07,116.95,402.47091813]
[1644220852835,12.8218,117.08,116.96,48.4184]
[1644220853031,0.25,117.09,116.96,50.14272229]
[1644220853231,0.25,117.09,116.96,56.14272229]
[1644220853432,0.25,117.09,116.98,41.36008498]
[1644220853832,34.80092928,117.11,116.98,43.08011329]
[1644220854035,6.0,117.11,116.98,43.08011329]
[1644220854234,42.7264,117.15,116.98,49.08011329]
[1644220854432,12.9194,117.19,116.99,23.0332]
[1644220854433,6.27755,117.14,116.99,23.0332]
[1644220854633,6.27755,117.14,117.0,24.267]
[1644220854833,6.27755,117.14,117.0,26.23702831]
[1644220855034,6.27755,117.14,117.01,50.02211359]
[1644220855233,6.27755,117.14,117.01,74.31981359]
[1644220855435,6.27755,117.14,117.02,1.72002831]
[1644220855634,6.27755,117.14,117.03,39.91402543]
[1644220855834,45.96918064,117.15,117.03,40.16402543]
[1644220856036,45.96918064,117.15,117.03,41.88405374]
[1644220856234,46.21918064,117.15,117.03,41.88405374]
[1644220856434,12.8131,117.16,117.03,41.88405374]
[1644220856639,19.09065,117.16,117.03,41.88405374]
[1644220857036,12.8131,117.16,117.03,41.88405374]
[1644220857437,65.402631,117.16,117.03,41.88405374]
[1644220857636,52.589531,117.16,117.03,54.69525374]
[1644220857837,12.8112,117.18,117.03,60.69525374]
[1644220858039,4.269,117.23,117.04,47.8197]
[1644220858338,6.27755,117.22,117.05,24.8273]
[1644220858537,6.27755,117.22,117.05,26.54732831]
[1644220858740,56.31506087,117.21,117.06,35.17328867]
[1644220858940,35.10709441,117.19,117.06,35.17328867]
[1644220859142,34.3895288,117.17,117.06,35.17328867]
[1644220859740,42.7451397,117.17,117.06,35.42328867]
[1644220860143,42.7451397,117.17,117.06,35.17328867]
[1644220860343,59.03395112,117.17,117.06,35.42328867]
[1644220861043,12.8169,117.16,117.06,35.42328867]
[1644220861446,6.3736109,117.19,117.06,35.42328867]
[1644220861650,16.28881142,117.2,117.07,49.0554]
[1644220861843,18.39442232,117.23,117.07,49.3054]
[1644220862046,6.0,117.2,117.07,49.3054]
[1644220862243,48.79613538,117.19,117.08,45.78791437]
[1644220862445,26.83436142,117.22,117.08,45.78791437]
[1644220862446,32.83436142,117.22,117.08,45.78791437]
[1644220862643,12.8083,117.2,117.09,24.2575]
[1644220862845,26.55681142,117.22,117.09,24.5075]
[1644220863145,20.55681142,117.22,117.09,24.5075]
[1644220863545,48.4169586,117.21,117.1,42.86810795]
[1644220863748,48.4169586,117.21,117.1,43.11810795]
[1644220864545,33.36311142,117.22,117.1,43.11810795]
[1644220864847,20.80681142,117.22,117.1,49.11810795]
[1644220865045,4.268,117.22,117.1,55.92220795]
[1644220865246,4.267,117.23,117.1,63.64223626]
[1644220865445,4.267,117.24,117.11,49.1547]
[1644220865645,10.11688681,117.31,117.11,49.1547]
[1644220865646,36.03817538,117.28,117.12,37.19972912]
[1644220865845,36.03817538,117.28,117.13,24.5673]
[1644220866044,4.266,117.27,117.14,45.63058568]
[1644220866244,4.266,117.27,117.15,47.6532]
[1644220866645,4.266,117.27,117.15,55.62870809]
[1644220866847,4.266,117.27,117.15,66.7015]
[1644220867045,4.266,117.27,117.16,1.72550809]
[1644220867245,4.266,117.27,117.17,43.53522479]
[1644220867645,4.266,117.27,117.17,43.78522479]
[1644220868847,4.266,117.27,117.11,74.2741]
[1644220868848,18.33542911,117.26,117.11,23.5341]
[1644220869049,4.266,117.25,117.12,48.6475]
[1644220869250,22.91042232,117.25,117.12,48.6475]
[1644220869451,16.28881142,117.24,117.12,48.6475]
[1644220869649,4.266,117.23,117.12,48.6475]
[1644220869850,4.266,117.23,117.13,42.8246496]
[1644220870255,4.266,117.23,117.13,49.0746496]
[1644220870452,4.266,117.25,117.13,49.0746496]
[1644220870651,4.266,117.25,117.14,23.9085]
[1644220870853,26.82526101,117.34,117.14,24.1585]
[1644220870854,4.266,117.26,117.14,24.1585]
[1644220871053,46.9394,117.29,117.14,30.1585]
[1644220871253,4.265,117.29,117.14,42.9575]
[1644220871754,4.265,117.29,117.15,39.80762618]
[1644220872156,4.265,117.29,117.15,46.05762618]
[1644220872355,4.265,117.29,117.16,48.4355]
[1644220872754,4.265,117.29,117.17,46.82792759]
[1644220873155,4.265,117.29,117.17,53.07792759]
[1644220874879,4.265,117.31,117.17,53.07792759]
[1644220875561,10.54255,117.31,117.17,53.07792759]
[1644220875958,10.54255,117.31,117.18,12.7951]
[1644220876160,10.54255,117.31,117.19,42.65329641]
[1644220876459,10.54255,117.31,117.19,42.90329641]
[1644220876660,4.265,117.31,117.19,48.90329641]
[1644220877059,41.09442869,117.3,117.19,48.90329641]
[1644220877261,4.264,117.29,117.19,48.90329641]
[1644220878061,41.5849517,117.28,117.19,48.90329641]
[1644220878259,4.264,117.27,117.19,42.90329641]
[1644220878664,4.265,117.3,117.19,48.90329641]
[1644220879263,10.265,117.3,117.19,48.90329641]
[1644220879561,56.10724472,117.3,117.19,48.90329641]
[1644220881565,68.90554472,117.3,117.19,48.65329641]
[1644220881767,69.15554472,117.3,117.19,42.65329641]
[1644220882167,84.32368229,117.3,117.19,42.65329641]
[1644220882783,86.42929319,117.3,117.19,42.65329641]
[1644220883386,71.26115562,117.3,117.19,42.65329641]
[1644220883585,69.15554472,117.3,117.19,42.65329641]
[1644220883985,69.15554472,117.3,117.19,42.90329641]
[1644220886589,63.15554472,117.3,117.19,42.90329641]
[1644220886789,63.15554472,117.3,117.19,48.90329641]
[1644220886989,50.10724472,117.3,117.19,42.40329641]
[1644220887189,50.10724472,117.3,117.19,48.40329641]
[1644220887991,4.265,117.3,117.19,48.40329641]
[1644220888490,4.265,117.3,117.19,61.19689641]
[1644220888892,4.264,117.33,117.19,111.93689641]
[1644220889093,48.12962067,117.33,117.21,35.73910021]
[1644220889294,48.12962067,117.33,117.21,35.98910021]
[1644220889494,49.32807873,117.33,117.21,41.98910021]
[1644220890098,49.32807873,117.33,117.23,44.52100982]
[1644220890295,5.46245806,117.33,117.23,44.77100982]
[1644220890497,5.46245806,117.33,117.23,50.77100982]
[1644220891298,53.6904514,117.33,117.23,50.77100982]
[1644220891496,52.49199334,117.33,117.23,50.77100982]
[1644220891799,1.19845806,117.32,117.23,44.77100982]
[1644220891996,44.5391163,117.3,117.23,44.52100982]
[1644220892197,51.98757436,117.3,117.23,44.52100982]
[1644220892398,44.38000857,117.28,117.23,44.52100982]
[1644220892600,4.264,117.27,117.23,44.52100982]
[1644220892999,4.264,117.27,117.2,47.3787]
[1644220893198,4.264,117.27,117.2,47.6287]
[1644220894001,47.19784435,117.26,117.2,91.46395693]
[1644220894202,4.265,117.25,117.2,91.46395693]
[1644220894400,4.265,117.25,117.2,44.08525693]
[1644220895203,44.4752385,117.24,117.2,44.08525693]
[1644220895402,4.265,117.23,117.2,44.08525693]
[1644220895602,4.265,117.23,117.21,6.06439994]
[1644220895800,4.265,117.27,117.21,6.31439994]
[1644220896000,5.46245806,117.29,117.21,6.31439994]
[1644220896202,5.71245806,117.29,117.21,6.31439994]
[1644220896400,5.71245806,117.29,117.21,3.81439994]
[1644220896600,42.21117944,117.28,117.22,43.50619217]
[1644220896800,39.28186159,117.26,117.22,43.75619217]
[1644220897001,4.264,117.25,117.22,43.75619217]
[1644220897400,4.264,117.28,117.23,3.03219997]
[1644220897804,4.264,117.28,117.23,3.28219997]
[1644220898203,4.264,117.28,117.24,37.87146317]
[1644220898402,4.264,117.29,117.24,37.87146317]
[1644220898603,4.264,117.29,117.26,200.0]
[1644220898804,42.97875752,117.31,117.27,3.03219997]
[1644220898805,4.263,117.3,117.27,3.03219997]
[1644220899203,4.263,117.3,117.28,0.53219996]
[1644220899603,4.263,117.3,117.26,239.22465828]
[1644220904710,1.19845806,117.32,117.26,239.22465828]
[1644220904711,4.263,117.31,117.26,239.22465828]
[1644220908913,4.263,117.32,117.26,239.22465828]
[1644220910115,4.262,117.32,117.26,239.22465828]
[1644220912719,46.81609883,117.31,117.26,200.0]
[1644220912919,4.263,117.3,117.26,200.0]
[1644220913519,40.16513506,117.29,117.26,200.0]
[1644220913733,6.763,117.28,117.26,200.0]
[1644220915120,4.763,117.28,117.26,200.0]
[1644220917223,4.763,117.28,117.26,203.56439993]
[1644220917424,2.263,117.28,117.26,203.56439993]
[1644220918022,41.32911622,117.28,117.26,203.56439993]
[1644220918224,2.263,117.28,117.26,203.56439993]
[1644220918528,2.263,117.28,117.26,181.65520852]
[1644220918724,0.25,117.28,117.26,181.65520852]
[1644220918926,6.25,117.28,117.26,181.65520852]
[1644220919525,0.25,117.28,117.26,181.65520852]
[1644220919725,0.25,117.3,117.26,181.65520852]
[1644220919924,12.8003,117.28,117.26,181.65520852]
[1644220920426,0.25,117.31,117.26,181.65520852]
[1644220920630,0.25,117.31,117.27,44.97086943]
[1644220920825,15.16813757,117.32,117.27,44.97086943]
[1644220921231,12.7954,117.32,117.27,44.97086943]
[1644220921426,6.65596101,117.34,117.27,44.97086943]
[1644220921628,41.27519858,117.35,117.27,45.22086943]
[1644220921827,38.88223757,117.35,117.27,45.22086943]
[1644220922229,40.98784847,117.35,117.27,45.22086943]
[1644220922630,39.13223757,117.35,117.27,45.22086943]
[1644220923754,34.13223757,117.35,117.27,45.22086943]
[1644220924054,36.23784847,117.35,117.27,45.22086943]
[1644220924353,31.23784847,117.35,117.27,45.22086943]
[1644220924954,17.52374847,117.35,117.27,45.22086943]
[1644220925362,30.31674847,117.35,117.27,45.22086943]
[1644220926457,26.51446101,117.36,117.27,45.22086943]
[1644220926655,24.1215,117.36,117.27,51.22086943]
[1644220927057,26.36326101,117.38,117.27,75.86496943]
[1644220927355,23.9703,117.38,117.27,98.91316943]
[1644220928155,26.61326101,117.38,117.27,98.91316943]
[1644220928556,26.36326101,117.38,117.27,98.91316943]
[1644220928859,13.40874703,117.37,117.27,98.91316943]
[1644220929057,13.40874703,117.37,117.28,1.73283437]
[1644220929257,23.9703,117.38,117.28,1.98283437]
[1644220929457,2.39296101,117.39,117.28,7.98283437]
[1644220929657,2.39296101,117.4,117.29,26.65823437]
[1644220929856,2.39296101,117.4,117.3,37.34881834]
[1644220930058,18.67279311,117.43,117.32,82.0]
[1644220930257,18.67279311,117.43,117.33,23.5567]
[1644220930458,46.8579,117.5,117.34,4.259]
[1644220930658,4.259,117.5,117.35,23.5567]
[1644220930858,13.63919313,117.5,117.35,23.8067]
[1644220931058,38.72469509,117.49,117.36,38.31750319]
[1644220931259,38.72469509,117.49,117.37,47.3109]
[1644220931462,38.72469509,117.49,117.38,46.84818595]
[1644220931463,58.36388822,117.49,117.38,46.84818595]
[1644220931661,62.8125433,117.49,117.38,52.84818595]
[1644220931959,75.5897433,117.49,117.38,53.09818595]
[1644220932159,71.14108822,117.49,117.38,53.09818595]
[1644220932960,73.24669912,117.49,117.38,6.25]
[1644220933158,73.24669912,117.49,117.34,52.2055]
[1644220933159,12.7826,117.45,117.34,52.2055]
[1644220933358,12.7826,117.45,117.34,46.4555]
[1644220933559,2.1056109,117.44,117.34,52.4555]
[1644220933760,2.1056109,117.44,117.34,52.2055]
[1644220933963,43.27635461,117.43,117.35,48.29852938]
[1644220934259,43.52635461,117.43,117.35,48.29852938]
[1644220935261,43.52635461,117.43,117.35,48.54852938]
[1644220935463,49.52635461,117.43,117.35,48.54852938]
[1644220935662,43.52635461,117.43,117.35,48.54852938]
[1644220937362,49.52635461,117.43,117.35,48.54852938]
[1644220938363,14.8863109,117.46,117.35,48.54852938]
[1644220938566,13.63919313,117.47,117.36,23.3488]
[1644220938767,13.63919313,117.47,117.36,23.5988]
[1644220939070,13.63919313,117.47,117.36,29.5988]
[1644220939264,13.63919313,117.47,117.37,39.89577374]
[1644220939664,13.63919313,117.47,117.37,45.89577374]
[1644220939864,13.63919313,117.47,117.37,46.14577374]
[1644220940064,52.35651361,117.47,117.37,46.14577374]
[1644220940868,38.71732048,117.47,117.37,46.14577374]
[1644220942369,38.96732048,117.47,117.37,46.14577374]
[1644220943169,44.96732048,117.47,117.37,46.14577374]
[1644220943973,38.96732048,117.47,117.37,46.14577374]
[1644220945371,38.96732048,117.47,117.39,40.66608914]
[1644220945771,38.96732048,117.47,117.39,40.91608914]
[1644220945972,44.96732048,117.47,117.39,40.91608914]
[1644220946173,38.96732048,117.47,117.39,40.91608914]
[1644220948475,65.23105765,117.47,117.38,22.9511]
[1644220948674,71.23105765,117.47,117.38,22.9511]
[1644220949477,71.23105765,117.47,117.37,48.72716869]
[1644220949904,71.23105765,117.47,117.37,48.97716869]
[1644220951080,65.23105765,117.47,117.37,48.97716869]
[1644220951883,0.25,117.47,117.37,48.97716869]
[1644220952082,65.4351,117.49,117.38,23.293]
[1644220952283,65.4351,117.49,117.38,23.543]
[1644220952482,65.4351,117.49,117.38,29.543]
[1644220952684,65.4351,117.49,117.38,52.8536]
[1644220952882,42.27684413,117.48,117.39,44.56154661]
[1644220953084,42.27684413,117.48,117.39,50.56154661]
[1644220953283,42.52684413,117.48,117.39,50.81154661]
[1644220953688,42.27684413,117.48,117.39,50.81154661]
[1644220955184,42.52684413,117.48,117.39,50.81154661]
[1644220956786,55.30544413,117.48,117.39,50.81154661]
[1644220956984,74.69394797,117.48,117.39,6.25]
[1644220957189,74.69394797,117.48,117.39,0.25]
[1644220957414,74.69394797,117.48,117.38,46.6036]
[1644220957606,78.95094797,117.48,117.38,46.6036]
[1644220958008,78.95094797,117.48,117.38,85.11212187]
[1644220958208,78.95094797,117.48,117.38,91.11212187]
[1644220958408,78.95094797,117.48,117.38,85.11212187]
[1644220958610,78.95094797,117.48,117.38,46.6036]
[1644220958818,74.69394797,117.48,117.38,46.8536]
[1644220959813,78.95094797,117.48,117.38,46.6036]
[1644220960213,78.70094797,117.48,117.39,35.21595245]
[1644220960412,74.44394797,117.48,117.39,35.21595245]
[1644220961112,74.44394797,117.48,117.39,35.46595245]
[1644220962215,68.44394797,117.48,117.39,35.46595245]
[1644220962616,68.44394797,117.48,117.39,0.25]
[1644220962814,68.44394797,117.48,117.38,46.8536]
[1644220963215,68.69394797,117.48,117.38,46.6036]
[1644220963415,74.69394797,117.48,117.38,46.6036]
[1644220964215,74.69394797,117.48,117.39,41.87359799]
[1644220964817,74.69394797,117.48,117.39,42.12359799]
[1644220965018,74.69394797,117.48,117.39,0.25]
[1644220965219,74.69394797,117.48,117.38,46.8536]
[1644220966517,74.69394797,117.48,117.38,0.25]
[1644220966718,24.5648,117.47,117.34,48.9802]
[1644220966920,12.7835,117.44,117.34,48.9802]
[1644220967119,12.7835,117.44,117.34,55.2302]
[1644220967319,36.50201453,117.43,117.35,39.90526775]
[1644220967720,42.75201453,117.43,117.35,45.90526775]
[1644220969319,42.75201453,117.43,117.35,46.15526775]
[1644220972827,42.50201453,117.43,117.35,46.15526775]
[1644220974227,42.75201453,117.43,117.35,46.15526775]
[1644220974829,42.50201453,117.43,117.35,46.15526775]
[1644220975631,42.21230384,117.47,117.35,46.15526775]
[1644220975829,23.2174,117.49,117.36,23.3081]
[1644220976229,23.2174,117.49,117.36,31.29178554]
[1644220976633,44.26675467,117.48,117.37,43.81766255]
[1644220976832,44.26675467,117.48,117.37,48.32566255]
[1644220977034,44.26675467,117.48,117.37,54.32566255]
[1644220977333,44.51675467,117.48,117.39,44.37664057]
[1644220977838,44.51675467,117.48,117.39,50.62664057]
[1644220982737,18.6507977,117.51,117.39,50.62664057]
[1644220982940,0.1,117.54,117.4,27.248]
[1644220983138,0.1,117.54,117.4,43.85096239]
[1644220983338,0.12546752,117.56,117.41,12.33664793]
[1644220983543,0.12546752,117.56,117.42,54.995]
[1644220983744,0.12546752,117.56,117.44,50.74]
[1644220983939,0.12546752,117.56,117.46,12.7621]
[1644220984139,0.12546752,117.56,117.48,39.75329714]
[1644220984440,0.12546752,117.56,117.48,40.00329714]
[1644220984640,0.12546752,117.56,117.48,46.00329714]
[1644220984840,0.12546752,117.56,117.48,68.92099714]
[1644220986141,0.12546752,117.56,117.42,17.253]
[1644220986341,2.1056109,117.55,117.47,6.0]
[1644220986541,2.1056109,117.55,117.43,48.0642]
[1644220986840,2.1056109,117.55,117.43,54.0642]
[1644220987042,47.17190398,117.54,117.44,37.30157356]
[1644220987241,47.27190398,117.54,117.44,35.56788802]
[1644220987442,47.42190398,117.54,117.44,41.56788802]
[1644220987641,47.52190398,117.54,117.44,35.56788802]
[1644220987842,49.52751488,117.54,117.44,35.56788802]
[1644220988145,49.62751488,117.54,117.44,35.56788802]
[1644220988441,49.52751488,117.54,117.44,35.56788802]
[1644220988641,55.62751488,117.54,117.44,35.56788802]
[1644220988841,49.52751488,117.54,117.44,35.56788802]
[1644220989041,62.40021488,117.54,117.44,35.56788802]
[1644220989243,62.30021488,117.54,117.44,35.56788802]
[1644220989442,62.40021488,117.54,117.44,35.56788802]
[1644220989642,47.42190398,117.54,117.44,41.81788802]
[1644220989843,47.52190398,117.54,117.44,41.56788802]
[1644220990043,47.42190398,117.54,117.44,41.56788802]
[1644220990245,47.52190398,117.54,117.44,41.56788802]
[1644220990446,47.42190398,117.54,117.44,41.56788802]
[1644220990648,47.52190398,117.54,117.44,41.56788802]
[1644220990846,47.42190398,117.54,117.44,41.56788802]
[1644220991044,47.52190398,117.54,117.44,41.56788802]
[1644220991244,53.42190398,117.54,117.44,41.81788802]
[1644220991445,53.52190398,117.54,117.44,41.81788802]
[1644220991645,47.42190398,117.54,117.44,41.81788802]
[1644220991845,53.52190398,117.54,117.44,41.81788802]
[1644220992046,47.42190398,117.54,117.44,41.81788802]
[1644220992245,47.52190398,117.54,117.44,41.81788802]
[1644220992445,47.42190398,117.54,117.44,41.81788802]
[1644220992645,47.52190398,117.54,117.44,41.81788802]